bitfinex-derivatives/quotes_BTCF0:USTF0_20250501
["timestamp","ask_amount","ask_price","bid_price","bid_amount"]
[1746078404652,3.22548416,95192.0,95191.0,2.16745044]
[1746078405143,3.22548416,95192.0,95191.0,2.0720723]
[1746078405346,3.43555426,95192.0,95191.0,1.862]
[1746078405546,3.22548416,95192.0,95186.0,0.1294406]
[1746078405743,0.3608,95189.0,95188.0,0.2625985]
[1746078405943,0.3608,95189.0,95188.0,0.5525985]
[1746078406145,3.43008416,95189.0,95188.0,0.6745985]
[1746078407448,3.43208416,95189.0,95188.0,0.6745985]
[1746078408253,3.43008416,95189.0,95188.0,0.6745985]
[1746078408447,3.43208416,95189.0,95188.0,0.6745985]
[1746078409036,3.43212416,95189.0,95188.0,0.69009136]
[1746078409936,3.43212416,95189.0,95188.0,0.70240303]
[1746078410137,3.4198125,95189.0,95188.0,0.70240303]
[1746078410338,2.26317834,95189.0,95188.0,0.70240303]
[1746078410537,3.4198125,95189.0,95188.0,0.70240303]
[1746078412047,3.4198125,95189.0,95188.0,0.70326462]
[1746078413549,3.40750085,95189.0,95188.0,0.70326462]
[1746078413956,3.40750085,95189.0,95188.0,0.70309186]
[1746078415751,3.40750085,95189.0,95188.0,0.70265768]
[1746078415940,3.40750085,95189.0,95188.0,0.77957768]
[1746078417547,3.40750085,95189.0,95188.0,0.77951647]
[1746078419555,3.40750085,95189.0,95188.0,0.77951668]
[1746078420156,3.40011387,95189.0,95188.0,0.77951668]
[1746078420756,3.61019057,95189.0,95188.0,0.77951668]
[1746078420950,3.61019057,95189.0,95188.0,0.77950946]
[1746078421152,3.61019057,95189.0,95188.0,0.76787295]
[1746078421552,3.76759057,95189.0,95188.0,0.76787295]
[1746078423050,3.76759057,95189.0,95188.0,0.78018459]
[1746078423846,3.76759057,95189.0,95188.0,0.76787295]
[1746078424050,3.76759057,95189.0,95188.0,0.78018459]
[1746078424252,3.76759057,95189.0,95188.0,0.77954737]
[1746078424952,3.76266591,95189.0,95188.0,0.77954737]
[1746078427060,3.76266591,95189.0,95188.0,0.70262737]
[1746078427362,3.75035425,95189.0,95188.0,0.70262737]
[1746078428463,3.75035425,95189.0,95188.0,0.70231129]
[1746078429361,3.75035425,95189.0,95188.0,0.68691014]
[1746078429553,3.75035425,95189.0,95188.0,0.42431164]
[1746078429748,0.2100878,95184.0,95183.0,0.15967893]
[1746078429954,3.27937196,95184.0,95183.0,0.45161406]
[1746078430156,3.27937196,95184.0,95183.0,0.57719066]
[1746078430661,3.43987196,95184.0,95183.0,0.57719066]
[1746078431059,3.44087196,95184.0,95183.0,0.57819066]
[1746078431263,0.2101032,95177.0,95176.0,0.21290525]
[1746078431466,3.64026736,95177.0,95176.0,0.67300815]
[1746078432364,3.87266736,95177.0,95176.0,0.79500815]
[1746078432566,3.87266736,95177.0,95176.0,0.79600815]
[1746078433568,3.87266736,95177.0,95176.0,0.5831029]
[1746078433954,3.87266736,95177.0,95176.0,0.372]
[1746078434162,3.87566736,95177.0,95176.0,0.372]
[1746078434865,3.87666736,95177.0,95176.0,0.372]
[1746078435058,3.87466736,95177.0,95176.0,0.372]
[1746078435259,3.87766736,95177.0,95176.0,0.372]
[1746078435765,3.87866736,95177.0,95176.0,0.372]
[1746078436567,2.01872416,95173.0,95171.0,0.21290525]
[1746078436767,2.01872416,95173.0,95164.0,0.086]
[1746078436768,2.01872416,95166.0,95164.0,0.086]
[1746078436958,0.2101297,95166.0,95165.0,0.2101297]
[1746078437158,0.2101297,95166.0,95165.0,0.6021297]
[1746078437360,3.27965386,95166.0,95165.0,0.392]
[1746078437862,3.28065386,95166.0,95165.0,0.6021297]
[1746078439559,3.28065386,95166.0,95165.0,0.392]
[1746078441470,3.28365386,95166.0,95165.0,0.392]
[1746078441965,3.70235386,95166.0,95165.0,0.392]
[1746078443472,3.70135386,95166.0,95165.0,0.392]
[1746078443966,3.70035386,95166.0,95165.0,0.392]
[1746078444170,3.70135386,95166.0,95165.0,0.392]
[1746078444466,3.49022416,95166.0,95165.0,0.6021297]
[1746078444861,3.49026416,95166.0,95165.0,0.6021297]
[1746078445471,3.70039166,95166.0,95165.0,0.6021297]
[1746078447274,3.69939166,95166.0,95165.0,0.6021297]
[1746078447962,3.86369166,95166.0,95165.0,0.6021297]
[1746078448275,3.86469166,95166.0,95165.0,0.6021297]
[1746078449778,3.94649166,95166.0,95165.0,0.6021297]
[1746078449974,3.94549166,95166.0,95165.0,0.6021297]
[1746078450174,3.94649166,95166.0,95165.0,0.6021297]
[1746078450687,3.94549166,95166.0,95165.0,0.6021297]
[1746078450881,3.94649166,95166.0,95165.0,0.6021297]
[1746078451170,3.94649166,95166.0,95165.0,0.392]
[1746078451777,3.94649166,95166.0,95165.0,0.6021297]
[1746078452379,3.94649166,95166.0,95165.0,0.61754751]
[1746078453382,3.94649166,95166.0,95165.0,0.6021297]
[1746078454177,3.73636416,95166.0,95165.0,0.6021297]
[1746078454580,3.94649166,95166.0,95165.0,0.6021297]
[1746078455881,3.94549166,95166.0,95165.0,0.6021297]
[1746078456281,3.94549166,95166.0,95165.0,0.61754533]
[1746078456781,3.94649166,95166.0,95165.0,0.61754533]
[1746078456974,3.94549166,95166.0,95165.0,0.61754533]
[1746078457281,3.94649166,95166.0,95165.0,0.6021297]
[1746078457583,3.94649166,95166.0,95165.0,0.392]
[1746078457985,3.94649166,95166.0,95165.0,0.6021297]
[1746078458381,3.94649166,95166.0,95165.0,0.392]
[1746078458787,0.210143,95159.0,95158.0,0.01055841]
[1746078459083,0.2101739,95145.0,95143.0,0.2]
[1746078459290,0.2101739,95145.0,95136.0,0.31904311]
[1746078459291,3.64065806,95145.0,95144.0,0.47586926]
[1746078459771,4.05935806,95145.0,95144.0,0.47586926]
[1746078459972,0.2102159,95128.0,95127.0,0.262763]
[1746078460282,0.5710159,95128.0,95127.0,0.574763]
[1746078460483,1.98445006,95128.0,95127.0,0.574763]
[1746078460677,2.84654006,95128.0,95127.0,0.312]
[1746078461279,2.84654006,95128.0,95127.0,0.317]
[1746078462371,2.84654006,95128.0,95127.0,0.54863025]
[1746078462574,2.84654006,95128.0,95127.0,0.33841655]
[1746078462775,2.84654006,95128.0,95127.0,0.33741655]
[1746078463285,2.84654006,95128.0,95127.0,0.33541655]
[1746078464283,2.84654006,95128.0,95127.0,0.3354748]
[1746078464485,2.84654006,95128.0,95127.0,0.32]
[1746078464674,2.84654006,95128.0,95127.0,0.33547436]
[1746078464874,2.84654006,95128.0,95127.0,0.32]
[1746078465182,2.84654006,95128.0,95127.0,0.3354748]
[1746078465382,3.26524006,95128.0,95127.0,0.316]
[1746078465587,3.26724006,95128.0,95127.0,0.33146599]
[1746078465782,3.26724006,95128.0,95127.0,0.32746599]
[1746078465979,3.26924006,95128.0,95127.0,0.32746599]
[1746078466584,3.26924006,95128.0,95127.0,0.312]
[1746078467595,3.26924006,95128.0,95127.0,0.13752978]
[1746078469488,2.40715006,95128.0,95127.0,0.13752978]
[1746078469685,3.26924006,95128.0,95127.0,0.13752978]
[1746078472395,3.26924006,95128.0,95127.0,0.49265378]
[1746078472396,0.4227,95128.0,95127.0,0.49265378]
[1746078472593,0.4227,95128.0,95127.0,0.70286748]
[1746078472786,0.4227,95128.0,95127.0,0.59774348]
[1746078472986,0.42274,95128.0,95127.0,2.09774348]
[1746078473392,0.41874,95128.0,95127.0,2.10274348]
[1746078473686,0.41874,95128.0,95127.0,2.10774348]
[1746078474290,0.41874,95128.0,95127.0,1.85774348]
[1746078475000,0.41874,95128.0,95127.0,1.85474348]
[1746078475189,0.41874,95128.0,95127.0,1.85174348]
[1746078475599,0.41874,95128.0,95127.0,1.84774348]
[1746078475798,0.41874,95128.0,95127.0,1.85074348]
[1746078476901,0.4187,95128.0,95127.0,1.85074348]
[1746078477088,5.401e-05,95137.0,95133.0,0.05255]
[1746078477289,5.401e-05,95137.0,95136.0,0.2101938]
[1746078477485,5.401e-05,95137.0,95136.0,0.4601938]
[1746078478089,5.401e-05,95137.0,95136.0,0.5821938]
[1746078480900,0.3608,95142.0,95141.0,0.2101827]
[1746078481096,0.3608,95142.0,95141.0,0.5821827]
[1746078481787,0.3608,95142.0,95141.0,0.7456827]
[1746078482896,0.3608,95142.0,95141.0,0.7466827]
[1746078483492,0.3608,95142.0,95141.0,0.7456827]
[1746078485805,0.3608,95142.0,95141.0,0.7466827]
[1746078486309,0.4428,95142.0,95141.0,0.7466827]
[1746078486807,0.4428,95142.0,95141.0,0.373]
[1746078487104,2.75610466,95142.0,95141.0,0.373]
[1746078487903,2.75610466,95142.0,95141.0,0.372]
[1746078488090,1.15663416,95132.0,95131.0,0.2102028]
[1746078488296,1.51743416,95132.0,95131.0,0.4602028]
[1746078488501,2.37952416,95132.0,95131.0,0.4602028]
[1746078489010,2.37952416,95132.0,95131.0,1.9602028]
[1746078489197,2.37952416,95132.0,95131.0,2.0822028]
[1746078489396,2.58972676,95132.0,95131.0,0.372]
[1746078492002,2.69484277,95132.0,95131.0,0.372]
[1746078494693,2.25145277,95132.0,95131.0,0.372]
[1746078494899,0.2102358,95117.0,95112.0,0.0525614]
[1746078495205,0.2102557,95108.0,95107.0,0.2209288]
[1746078495399,2.58977986,95108.0,95107.0,0.450257]
[1746078495601,2.37952416,95108.0,95107.0,0.46073289]
[1746078495908,2.58977986,95108.0,95107.0,0.450257]
[1746078496118,2.58977986,95108.0,95107.0,0.572257]
[1746078496610,2.58977986,95108.0,95107.0,0.362]
[1746078496812,2.58977986,95108.0,95107.0,0.367]
[1746078498215,0.3608,95126.0,95107.0,0.72214399]
[1746078498409,0.3608,95132.0,95116.0,0.12376698]
[1746078498605,0.0938,95125.0,95124.0,0.2102203]
[1746078498906,0.0938,95125.0,95124.0,2.0608203]
[1746078499112,0.0938,95125.0,95124.0,2.1828203]
[1746078499412,0.0938,95125.0,95124.0,2.3628203]
[1746078499605,0.09384,95125.0,95124.0,2.3628203]
[1746078500002,0.09384,95125.0,95124.0,2.3638203]
[1746078500201,0.09384,95125.0,95124.0,2.2747203]
[1746078500902,0.09384,95125.0,95124.0,2.2777203]
[1746078501508,0.09384,95125.0,95124.0,2.2787203]
[1746078501811,0.09384,95125.0,95124.0,2.2757203]
[1746078502013,0.09384,95125.0,95124.0,2.2767203]
[1746078502214,0.09384,95125.0,95124.0,2.2787203]
[1746078502803,0.0938,95125.0,95124.0,2.2787203]
[1746078503004,0.0938,95125.0,95124.0,2.2786803]
[1746078503311,0.3608,95129.0,95128.0,0.2102114]
[1746078503510,0.3608,95129.0,95128.0,0.4502114]
[1746078504203,0.3608,95129.0,95128.0,0.5722114]
[1746078505514,0.3608,95129.0,95128.0,0.5732114]
[1746078506006,0.3608,95129.0,95128.0,0.6708114]
[1746078513717,0.3608,95129.0,95128.0,0.5752114]
[1746078513911,2.01872416,95114.0,95112.0,0.21247344]
[1746078514110,0.2102601,95106.0,95097.0,0.31965502]
[1746078514311,0.2102778,95098.0,95097.0,0.31965502]
[1746078514513,2.16599926,95098.0,95097.0,0.57965502]
[1746078514716,2.16599926,95098.0,95097.0,0.78993502]
[1746078514914,2.16603926,95098.0,95097.0,0.78993502]
[1746078515113,2.16603926,95098.0,95097.0,0.98249502]
[1746078515317,2.16603926,95098.0,95097.0,1.07559502]
[1746078515703,2.16603926,95098.0,95097.0,1.08259502]
[1746078517110,2.16703926,95098.0,95097.0,1.08959502]
[1746078518804,2.16703926,95098.0,95097.0,0.77151733]
[1746078520405,2.16699926,95098.0,95097.0,0.77151733]
[1746078520616,2.16703926,95098.0,95097.0,0.77151733]
[1746078523318,2.37731706,95098.0,95097.0,0.39757733]
[1746078523521,2.73247306,95098.0,95097.0,0.39757733]
[1746078523715,2.73247306,95098.0,95097.0,0.10197733]
[1746078524617,2.74025448,95098.0,95097.0,0.10197733]
[1746078524819,0.2629045,95079.0,95078.0,0.2103206]
[1746078525028,0.9319242,95079.0,95078.0,0.5602806]
[1746078525221,2.73712346,95079.0,95078.0,0.5602806]
[1746078526114,2.73712346,95079.0,95078.0,0.6822806]
[1746078526428,2.52679926,95079.0,95078.0,0.6822806]
[1746078526632,2.73711906,95079.0,95078.0,0.6822806]
[1746078527125,2.73811906,95079.0,95078.0,0.6912806]
[1746078527317,2.83081906,95079.0,95078.0,0.7002806]
[1746078528526,2.83081906,95079.0,95078.0,0.48996]
[1746078528920,2.83081906,95079.0,95078.0,0.700282]
[1746078530018,2.83081906,95079.0,95078.0,0.48996]
[1746078531517,2.52879926,95079.0,95078.0,0.700282]
[1746078531923,2.52879926,95079.0,95078.0,0.886282]
[1746078532221,0.7236,95079.0,95078.0,0.886282]
[1746078532610,0.72364,95079.0,95078.0,0.886282]
[1746078545016,2.52883926,95079.0,95078.0,0.886282]
[1746078545226,2.52883926,95079.0,95078.0,0.795882]
[1746078545622,2.52883926,95079.0,95078.0,0.885382]
[1746078547435,2.52883926,95079.0,95078.0,0.892382]
[1746078552232,2.73915906,95079.0,95078.0,0.892382]
[1746078552537,2.93185906,95079.0,95078.0,0.427]
[1746078552726,2.93185906,95079.0,95078.0,0.637322]
[1746078561426,2.93181906,95079.0,95078.0,0.637322]
[1746078562645,2.93181906,95079.0,95078.0,0.46531371]
[1746078566443,0.7236,95079.0,95078.0,0.46531371]
[1746078566633,0.7236,95079.0,95078.0,0.55641371]
[1746078566835,0.72364,95079.0,95078.0,0.55641371]
[1746078569153,0.3608,95089.0,95085.0,0.2103065]
[1746078569331,0.3608,95089.0,95088.0,0.2102999]
[1746078569530,0.3608,95089.0,95088.0,2.0288599]
[1746078570140,0.3608,95089.0,95088.0,2.1508599]
[1746078571044,0.3618,95089.0,95088.0,2.1568599]
[1746078572048,0.36284,95089.0,95088.0,2.1638599]
[1746078572638,0.36284,95089.0,95088.0,2.1932999]
[1746078572838,0.36284,95089.0,95088.0,2.2618599]
[1746078576251,0.36284,95089.0,95088.0,0.7618599]
[1746078577448,0.00204,95089.0,95088.0,0.7618599]
[1746078577947,0.002,95089.0,95088.0,0.7618599]
[1746078578149,0.00204,95089.0,95088.0,0.7618599]
[1746078578447,0.36284,95089.0,95088.0,0.7618599]
[1746078582250,0.00204,95089.0,95088.0,0.7618599]
[1746078584251,0.09294,95089.0,95088.0,0.7618599]
[1746078584450,0.18544,95089.0,95088.0,0.7618599]
[1746078584849,2.11003696,95089.0,95088.0,0.5952999]
[1746078585051,2.30883696,95089.0,95088.0,0.5952999]
[1746078586156,2.30883696,95089.0,95088.0,0.385]
[1746078586355,2.30883696,95089.0,95088.0,0.5952999]
[1746078586861,2.30879696,95089.0,95088.0,0.5952999]
[1746078587071,2.20093696,95089.0,95088.0,0.5952999]
[1746078587456,2.20089696,95089.0,95088.0,0.5952999]
[1746078587657,2.20093696,95089.0,95088.0,0.5952999]
[1746078589569,2.56173696,95089.0,95088.0,0.5952999]
[1746078589769,2.56173696,95089.0,95088.0,0.6985999]
[1746078592371,2.26049926,95089.0,95088.0,0.6985999]
[1746078592570,2.47083696,95089.0,95088.0,0.6985999]
[1746078598274,2.47083696,95089.0,95088.0,0.5952999]
[1746078607983,2.47079696,95089.0,95088.0,0.5952999]
[1746078608290,2.47083696,95089.0,95088.0,0.5952999]
[1746078612988,0.36284,95089.0,95088.0,0.5952999]
[1746078614085,0.3628,95089.0,95088.0,0.5952999]
[1746078614282,0.36284,95089.0,95088.0,0.5952999]
[1746078614481,0.5731377,95089.0,95088.0,0.5952999]
[1746078616390,0.36284,95089.0,95088.0,0.5952999]
[1746078618481,0.3628,95089.0,95088.0,0.6630599]
[1746078618687,0.36284,95089.0,95088.0,0.6630599]
[1746078620685,0.36284,95089.0,95088.0,2.1630599]
[1746078621195,0.413365,95106.0,95089.0,0.0525743]
[1746078621490,0.1107,95099.0,95098.0,0.2102778]
[1746078621695,0.1107,95099.0,95098.0,0.4902778]
[1746078621896,1.91589926,95099.0,95098.0,0.4902778]
[1746078622096,1.91589926,95099.0,95098.0,0.8227778]
[1746078622597,1.91589926,95099.0,95098.0,0.8277778]
[1746078622989,1.91589926,95099.0,95098.0,0.84546292]
[1746078623800,1.91589926,95099.0,95098.0,0.8277778]
[1746078624190,1.91689926,95099.0,95098.0,0.8327778]
[1746078624499,1.91689926,95099.0,95098.0,0.7282778]
[1746078628591,2.12717476,95099.0,95098.0,0.7282778]
[1746078644708,1.47860966,95099.0,95098.0,0.7282778]
[1746078644891,2.12717476,95099.0,95098.0,0.7282778]
[1746078648407,1.80619926,95099.0,95098.0,0.7282778]
[1746078648704,0.00104,95099.0,95098.0,0.7282778]
[1746078648901,0.001,95099.0,95098.0,0.7282778]
[1746078649101,0.00104,95099.0,95098.0,0.7282778]
[1746078650504,9.842e-05,95114.0,95104.0,0.2102645]
[1746078650701,9.842e-05,95114.0,95104.0,0.4802645]
[1746078650902,0.3608,95110.0,95109.0,0.2102534]
[1746078651103,0.3608,95110.0,95109.0,0.5822534]
[1746078651302,0.6485651,95110.0,95109.0,0.5822534]
[1746078651510,5.401e-05,95113.0,95111.0,0.210249]
[1746078651699,5.401e-05,95113.0,95111.0,0.470249]
[1746078651901,0.2102439,95114.0,95111.0,0.470249]
[1746078652102,0.2102439,95114.0,95111.0,0.813649]
[1746078652806,0.08021177,95112.0,95111.0,0.818649]
[1746078653010,4e-05,95112.0,95111.0,0.818649]
[1746078653405,9.842e-05,95128.0,95112.0,0.0525612]
[1746078653603,9.842e-05,95128.0,95118.0,0.2102335]
[1746078653799,0.2102073,95130.0,95118.0,0.27]
[1746078654105,0.21177803,95133.0,95124.0,0.2102203]
[1746078654299,1.26350756,95125.0,95124.0,0.4402203]
[1746078654497,1.91207266,95125.0,95124.0,0.4402203]
[1746078654702,0.00157763,95133.0,95132.0,0.2102026]
[1746078654920,0.00157763,95133.0,95132.0,0.4702026]
[1746078655109,0.65021564,95133.0,95132.0,0.5922026]
[1746078655310,0.65014273,95133.0,95132.0,0.5922026]
[1746078655611,0.65014273,95133.0,95132.0,0.8117026]
[1746078655809,0.65018273,95133.0,95132.0,0.8117026]
[1746078656309,0.65118273,95133.0,95132.0,0.8117026]
[1746078656499,0.65218273,95133.0,95132.0,0.8117026]
[1746078656904,0.65218273,95133.0,95132.0,0.82751855]
[1746078658204,0.00361763,95133.0,95132.0,0.82751855]
[1746078658412,0.00357763,95133.0,95132.0,0.82751855]
[1746078658608,0.00361763,95133.0,95132.0,0.82751855]
[1746078659010,0.00361763,95133.0,95132.0,0.89447855]
[1746078664318,0.001,95136.0,95132.0,0.68427595]
[1746078664505,1e-08,95141.0,95140.0,0.2101849]
[1746078664709,9.842e-05,95151.0,95147.0,0.0525419]
[1746078664911,0.5324,95165.0,95147.0,0.0525419]
[1746078664912,0.6378,95165.0,95164.0,0.2101319]
[1746078665113,0.8479297,95165.0,95164.0,0.6021319]
[1746078665318,2.65312896,95165.0,95164.0,0.6021319]
[1746078665519,2.44299926,95165.0,95164.0,0.6021319]
[1746078665720,2.44305327,95165.0,95164.0,0.6021319]
[1746078665915,2.65312896,95165.0,95164.0,0.6021319]
[1746078666109,2.65316896,95165.0,95164.0,0.4981]
[1746078666309,2.65716896,95165.0,95164.0,0.4981]
[1746078666509,2.66116896,95165.0,95164.0,0.4981]
[1746078667722,2.65716896,95165.0,95164.0,0.4981]
[1746078667918,2.66116896,95165.0,95164.0,0.4981]
[1746078668113,2.66016896,95165.0,95164.0,0.7082319]
[1746078671016,2.77166896,95165.0,95164.0,0.7082319]
[1746078676221,2.76866896,95165.0,95164.0,0.7082319]
[1746078676426,2.77166896,95165.0,95164.0,0.7082319]
[1746078677609,2.77166896,95165.0,95164.0,0.6021319]
[1746078682415,2.35296896,95165.0,95164.0,0.6021319]
[1746078682615,1.70440386,95165.0,95164.0,0.6021319]
[1746078682922,2.35296896,95165.0,95164.0,0.6021319]
[1746078683123,2.35296896,95165.0,95164.0,0.7153319]
[1746078689133,2.24146896,95165.0,95164.0,0.7153319]
[1746078694930,2.12776896,95165.0,95164.0,0.7153319]
[1746078695235,2.48856896,95165.0,95164.0,0.7153319]
[1746078696421,2.48852896,95165.0,95164.0,0.7153319]
[1746078697335,2.12772896,95165.0,95164.0,0.7153319]
[1746078697535,2.48852896,95165.0,95164.0,0.7153319]
[1746078706727,2.60302896,95165.0,95164.0,0.7153319]
[1746078710630,2.48852896,95165.0,95164.0,0.7153319]
[1746078711034,1.16363416,95165.0,95164.0,0.7153319]
[1746078711234,0.007,95165.0,95164.0,0.73005302]
[1746078711438,0.00704,95165.0,95164.0,0.73005302]
[1746078712337,0.2171697,95165.0,95164.0,0.73005302]
[1746078713645,0.2171697,95165.0,95164.0,0.7153319]
[1746078714944,0.2171697,95165.0,95164.0,0.72995515]
[1746078715446,1.37380386,95165.0,95164.0,0.72995515]
[1746078716845,1.37380386,95165.0,95164.0,0.7153319]
[1746078717447,1.37380386,95165.0,95164.0,0.7223319]
[1746078721640,1.37380386,95165.0,95164.0,0.5122]
[1746078721835,2.13296896,95165.0,95164.0,0.5122]
[1746078722031,2.24496896,95165.0,95164.0,0.5122]
[1746078722632,2.13296896,95165.0,95164.0,0.7223319]
[1746078722838,2.02236896,95165.0,95164.0,0.7223319]
[1746078723040,1.16367416,95165.0,95164.0,0.7223319]
[1746078723343,1.16363416,95165.0,95164.0,0.7223319]
[1746078723543,0.00704,95165.0,95164.0,0.7223319]
[1746078723948,0.007,95165.0,95164.0,0.7223319]
[1746078724144,0.00704,95165.0,95164.0,0.7223319]
[1746078728838,0.00704,95165.0,95164.0,0.53457607]
[1746078740352,0.00704,95165.0,95164.0,2.03457607]
[1746078740546,0.00704,95165.0,95164.0,2.39537607]
[1746078740950,0.007,95165.0,95164.0,2.39537607]
[1746078741150,0.00704,95165.0,95164.0,2.39537607]
[1746078750568,0.11564,95165.0,95164.0,2.39537607]
[1746078750769,0.11564,95165.0,95164.0,2.03457607]
[1746078750968,0.11564,95165.0,95164.0,2.39537607]
[1746078756275,0.00704,95165.0,95164.0,2.39537607]
[1746078756475,0.007,95165.0,95164.0,2.39537607]
[1746078756770,0.00704,95165.0,95164.0,2.39537607]
[1746078757875,0.007,95165.0,95164.0,2.39537607]
[1746078758060,0.001,95166.0,95164.0,2.18524417]
[1746078758264,5.401e-05,95173.0,95172.0,0.2101143]
[1746078758464,0.6485651,95177.0,95176.0,0.2101054]
[1746078758664,0.6485651,95177.0,95176.0,0.5468654]
[1746078758863,0.1117,95178.0,95177.0,0.2101032]
[1746078759068,0.1117,95178.0,95177.0,0.6993032]
[1746078759264,0.7602651,95178.0,95177.0,0.6993032]
[1746078760072,0.7672651,95178.0,95177.0,0.7003032]
[1746078761473,0.7672651,95178.0,95177.0,0.7073032]
[1746078761772,0.7712651,95178.0,95177.0,0.7073032]
[1746078768679,1.92789926,95178.0,95177.0,0.5901032]
[1746078768879,2.49306827,95178.0,95177.0,0.38]
[1746078770181,2.49306827,95178.0,95177.0,0.258]
[1746078770381,2.24306827,95178.0,95177.0,0.258]
[1746078772278,2.66176827,95178.0,95177.0,0.258]
[1746078772474,2.66176827,95178.0,95155.0,0.26579591]
[1746078772475,0.2101496,95156.0,95155.0,0.26579591]
[1746078772772,0.2101673,95148.0,95147.0,0.52824719]
[1746078772972,2.10313565,95148.0,95147.0,0.2101695]
[1746078773177,2.20823565,95148.0,95147.0,0.2101695]
[1746078773374,2.20823565,95148.0,95147.0,0.3201695]
[1746078773584,2.42713565,95148.0,95147.0,0.3201695]
[1746078774274,2.42713565,95148.0,95147.0,0.4421695]
[1746078774472,2.21796835,95148.0,95147.0,0.4421695]
[1746078774673,1.96223565,95148.0,95147.0,0.4421695]
[1746078774976,1.75210835,95148.0,95147.0,0.5579695]
[1746078775785,1.75210835,95148.0,95147.0,0.5589695]
[1746078775986,1.75206835,95148.0,95147.0,0.5589695]
[1746078776285,1.75210835,95148.0,95147.0,0.5589695]
[1746078776490,1.75210835,95148.0,95147.0,0.6663695]
[1746078776887,1.75206835,95148.0,95147.0,0.6663695]
[1746078777095,1.75210835,95148.0,95147.0,0.6663695]
[1746078777686,1.96227565,95148.0,95147.0,0.6663695]
[1746078777878,1.96227565,95148.0,95147.0,0.5589695]
[1746078780889,1.96227565,95148.0,95147.0,0.3488]
[1746078781092,2.42817565,95148.0,95147.0,0.09691729]
[1746078782277,2.42817565,95148.0,95147.0,0.001]
[1746078782887,2.43611395,95148.0,95147.0,0.001]
[1746078783089,2.43611395,95148.0,95147.0,0.123]
[1746078784087,2.43611395,95148.0,95147.0,0.001]
[1746078784987,2.85481395,95148.0,95147.0,0.001]
[1746078789087,2.85481395,95148.0,95147.0,0.123]
[1746078789889,2.49401395,95148.0,95147.0,0.123]
[1746078790083,3.21561395,95148.0,95147.0,0.123]
[1746078791083,3.28229395,95148.0,95147.0,0.123]
[1746078797497,3.21561395,95148.0,95147.0,0.123]
[1746078797794,0.9986456,95148.0,95147.0,0.4331695]
[1746078797989,0.9986056,95148.0,95147.0,0.4331695]
[1746078798191,0.9986456,95148.0,95147.0,0.4331695]
[1746078798397,0.9986056,95148.0,95147.0,0.4331695]
[1746078798696,0.9986456,95148.0,95147.0,0.4331695]
[1746078799091,0.9986456,95148.0,95147.0,0.37671959]
[1746078800599,2.15527976,95148.0,95147.0,0.222]
[1746078801494,2.63591395,95148.0,95147.0,0.222]
[1746078801697,2.74911395,95148.0,95147.0,0.122]
[1746078803391,2.82926307,95148.0,95147.0,0.122]
[1746078804303,2.82926307,95148.0,95147.0,0.0273044]
[1746078804493,0.2101761,95144.0,95143.0,0.1151]
[1746078804692,0.9896761,95144.0,95143.0,0.1151]
[1746078804999,2.62694845,95144.0,95143.0,0.1151]
[1746078805203,2.62694845,95144.0,95143.0,0.2371]
[1746078805392,2.84334845,95144.0,95143.0,0.2371]
[1746078805894,2.84334845,95144.0,95143.0,0.3371]
[1746078806095,2.84334845,95144.0,95143.0,0.2371]
[1746078806602,2.84334845,95144.0,95143.0,0.2381]
[1746078806905,2.84334845,95144.0,95143.0,0.2401]
[1746078807602,2.84434845,95144.0,95143.0,0.2381]
[1746078807806,2.96034845,95144.0,95143.0,0.2371]
[1746078808297,2.59954845,95144.0,95143.0,0.2471]
[1746078808501,3.32114845,95144.0,95143.0,0.2471]
[1746078809303,2.49214845,95144.0,95143.0,0.2471]
[1746078809604,3.21374845,95144.0,95143.0,0.2471]
[1746078810100,2.88464445,95144.0,95143.0,0.2471]
[1746078810298,2.50911026,95144.0,95143.0,0.2471]
[1746078810803,2.50915026,95144.0,95143.0,0.2471]
[1746078812901,2.50915026,95144.0,95143.0,0.3471]
[1746078813107,2.50915026,95144.0,95143.0,0.2371]
[1746078813303,2.50915026,95144.0,95143.0,0.3371]
[1746078813599,2.50915026,95144.0,95143.0,0.2371]
[1746078814003,2.50915026,95144.0,95143.0,0.3571]
[1746078814204,2.50915026,95144.0,95143.0,0.2371]
[1746078815708,2.50915026,95144.0,95143.0,0.3571]
[1746078816008,2.50915026,95144.0,95143.0,0.2371]
[1746078816599,2.50915026,95144.0,95143.0,0.3371]
[1746078816904,2.50915026,95144.0,95143.0,0.2371]
[1746078817299,2.50915026,95144.0,95143.0,0.3671]
[1746078820911,2.50915026,95144.0,95143.0,0.3471]
[1746078821205,2.50915026,95144.0,95143.0,0.2371]
[1746078821411,2.50915026,95144.0,95143.0,0.3471]
[1746078821611,2.50915026,95144.0,95143.0,0.2371]
[1746078821907,2.50915026,95144.0,95143.0,0.3371]
[1746078822117,2.50915026,95144.0,95143.0,0.2371]
[1746078823714,2.50915026,95144.0,95143.0,0.3571]
[1746078823903,2.50915026,95144.0,95143.0,0.2371]
[1746078824098,2.50915026,95144.0,95143.0,0.3471]
[1746078824305,2.50915026,95144.0,95143.0,0.2371]
[1746078824514,2.50915026,95144.0,95143.0,0.3471]
[1746078827516,2.50915026,95144.0,95143.0,0.2371]
[1746078827716,2.50915026,95144.0,95143.0,0.3571]
[1746078827917,2.50915026,95144.0,95143.0,0.2371]
[1746078828816,2.50915026,95144.0,95143.0,0.5171]
[1746078829118,2.50915026,95144.0,95143.0,0.2371]
[1746078829304,2.50915026,95144.0,95143.0,0.3571]
[1746078829510,2.50911026,95144.0,95143.0,0.2371]
[1746078829709,2.50915026,95144.0,95143.0,0.2371]
[1746078829909,2.50915026,95144.0,95143.0,0.5071]
[1746078830119,2.50915026,95144.0,95143.0,0.2371]
[1746078833020,2.50915026,95144.0,95143.0,0.3471]
[1746078836530,1.3525161,95144.0,95143.0,0.3471]
[1746078837421,1.3524761,95144.0,95143.0,0.3471]
[1746078837724,0.9338161,95144.0,95143.0,0.3471]
[1746078838128,0.9338161,95144.0,95143.0,0.4598]
[1746078839815,2.57398445,95144.0,95143.0,0.4598]
[1746078840015,2.57398445,95144.0,95143.0,0.3498]
[1746078840215,2.57398445,95144.0,95143.0,0.2371]
[1746078841027,2.57298445,95144.0,95143.0,0.2381]
[1746078841325,2.57198445,95144.0,95143.0,0.2381]
[1746078841722,2.57198445,95144.0,95143.0,0.2371]
[1746078842225,2.57298445,95144.0,95143.0,0.2371]
[1746078842525,2.57298445,95144.0,95143.0,0.5171]
[1746078842732,2.57298445,95144.0,95143.0,0.2371]
[1746078843327,2.57298445,95144.0,95143.0,0.3371]
[1746078850027,2.57298445,95144.0,95143.0,0.122]
[1746078850334,2.99168445,95144.0,95143.0,0.122]